bitfinex/quotes_BTCUSD_20220307
["timestamp","ask_amount","ask_price","bid_price","bid_amount"]
[1646675750944,0.08537349,38829.0,38828.0,0.21229853]
[1646675751144,0.08537349,38829.0,38828.0,0.26229853]
[1646675751542,0.08537349,38829.0,38828.0,0.05120641]
[1646675751742,0.08537349,38829.0,38826.0,0.05]
[1646675752144,0.08537349,38829.0,38825.0,0.1208135]
[1646675752343,0.25,38827.0,38825.0,0.05]
[1646675752542,0.25,38827.0,38823.0,0.27354964]
[1646675752745,0.25,38824.0,38823.0,0.27354964]
[1646675753342,0.25,38824.0,38823.0,0.57354964]
[1646675754791,0.25,38824.0,38823.0,0.05]
[1646675755392,0.25,38824.0,38819.0,0.0475]
[1646675755590,0.25,38819.0,38816.0,0.12884]
[1646675755989,0.25,38819.0,38816.0,0.31545917]
[1646675756190,0.25,38819.0,38817.0,0.53928295]
[1646675756389,0.25,38823.0,38817.0,0.53928295]
[1646675756591,0.25,38823.0,38818.0,0.3]
[1646675756891,0.25,38823.0,38821.0,0.73217]
[1646675757367,0.25,38823.0,38821.0,0.32359494]
[1646675757555,0.25,38823.0,38821.0,0.57359494]
[1646675757755,0.25,38823.0,38821.0,0.59936494]
[1646675757956,0.25,38823.0,38821.0,0.59916494]
[1646675758158,0.25,38823.0,38821.0,0.57339494]
[1646675758357,0.25,38823.0,38821.0,0.37359494]
[1646675758956,0.25,38823.0,38821.0,0.05]
[1646675759356,0.25,38820.0,38818.0,0.064425]
[1646675760058,0.25,38820.0,38818.0,0.2681839]
[1646675760460,0.25,38824.0,38818.0,0.2939539]
[1646675760667,0.00025621,38821.0,38818.0,0.88875206]
[1646675761099,0.2511,38831.0,38826.0,0.22577]
[1646675761298,0.0011,38836.0,38831.0,0.403354]
[1646675761493,0.0011,38836.0,38834.0,0.25678783]
[1646675761704,0.0011,38836.0,38834.0,0.79834183]
[1646675761888,0.0011,38847.0,38835.0,1.45]
[1646675762096,0.4203,38858.0,38851.0,0.2]
[1646675762397,0.0022,38862.0,38851.0,0.2]
[1646675762398,0.64911398,38868.0,38857.0,0.02577]
[1646675762607,0.0033,38868.0,38861.0,0.02577]
[1646675762791,0.0033,38868.0,38864.0,0.429124]
[1646675762994,0.20302977,38865.0,38861.0,0.13796]
[1646675763192,0.0033,38868.0,38853.0,0.40263765]
[1646675763395,0.0033,38868.0,38856.0,0.05]
[1646675763396,0.4492,38868.0,38856.0,0.05]
[1646675763592,0.003,38865.0,38855.0,0.128704]
[1646675764091,0.003,38865.0,38856.0,0.3]
[1646675764392,0.003,38865.0,38856.0,0.06435274]
[1646675764591,0.00027568,38863.0,38856.0,0.27287694]
[1646675765047,0.00027568,38863.0,38856.0,0.37277694]
[1646675765241,0.01395,38867.0,38859.0,0.06434607]
[1646675765441,0.0011,38867.0,38859.0,0.06434607]
[1646675765642,0.00026069,38861.0,38857.0,0.05]
[1646675766242,0.00026069,38861.0,38858.0,0.18945119]
[1646675766443,0.0011,38867.0,38858.0,0.18945119]
[1646675766645,0.0011,38867.0,38858.0,0.23945119]
[1646675766843,0.00026069,38861.0,38859.0,0.064349]
[1646675767045,0.00026069,38861.0,38848.0,0.3]
[1646675767245,0.00026069,38861.0,38847.0,0.0999]
[1646675767648,0.2884521,38859.0,38847.0,0.0999]
[1646675767845,0.390141,38858.0,38847.0,0.0999]
[1646675768043,0.390141,38858.0,38843.0,0.26822117]
[1646675768044,0.1755211,38856.0,38843.0,0.45184456]
[1646675768246,0.3,38855.0,38843.0,0.45184456]
[1646675768444,0.4,38855.0,38843.0,0.45184456]
[1646675768694,0.4,38855.0,38843.0,0.26822117]
[1646675769287,0.4,38855.0,38842.0,0.064375]
[1646675769487,0.4,38855.0,38838.0,0.35451891]
[1646675769488,0.00026073,38851.0,38838.0,0.12874891]
[1646675769889,0.06464473,38851.0,38837.0,0.33128699]
[1646675770088,0.3,38850.0,38837.0,0.33128699]
[1646675770290,0.3,38850.0,38838.0,0.1]
[1646675770489,0.3,38850.0,38839.0,0.28790256]
[1646675770689,0.00025612,38846.0,38838.0,0.1]
[1646675771290,0.19554243,38849.0,38838.0,0.1]
[1646675771690,0.0002382,38844.0,38838.0,0.1]
[1646675772338,0.0002382,38844.0,38837.0,0.128753]
[1646675772539,0.3,38848.0,38832.0,0.683955]
[1646675772540,0.07327,38843.0,38832.0,0.0999]
[1646675772740,0.02577,38841.0,38824.0,0.305005]
[1646675772945,0.07327,38841.0,38824.0,0.128805]
[1646675773237,0.064409,38836.0,38827.0,0.2789912]
[1646675773438,0.17417875,38835.0,38824.0,0.128805]
[1646675773737,0.22167875,38835.0,38822.0,0.06440637]
[1646675774137,0.32167875,38835.0,38822.0,0.06440637]
[1646675774338,0.00023983,38833.0,38827.0,0.18469472]
[1646675774540,0.00023983,38833.0,38823.0,0.28984668]
[1646675774739,0.00023983,38833.0,38825.0,0.06441]
[1646675774938,0.00023983,38833.0,38823.0,0.28984668]
[1646675775137,0.1,38833.0,38823.0,0.28984668]
[1646675775338,0.00024187,38830.0,38823.0,0.28984668]
[1646675775542,0.00024187,38830.0,38821.0,0.128816]
[1646675775941,0.00024187,38830.0,38817.0,0.128828]
[1646675776189,0.3475,38832.0,38817.0,0.128828]
[1646675776387,0.41192,38832.0,38818.0,0.1]
[1646675776588,0.41192,38832.0,38818.0,0.34625221]
[1646675776789,0.00024188,38827.0,38820.0,0.16835227]
[1646675776990,0.00024188,38827.0,38818.0,0.1]
[1646675777188,0.00024188,38827.0,38817.0,0.128828]
[1646675777489,0.3,38828.0,38810.0,0.20227]
[1646675777490,0.3475,38828.0,38810.0,0.20227]
[1646675777691,0.102,38827.0,38809.0,0.6164]
[1646675777888,0.00024105,38824.0,38814.0,0.22326649]
[1646675778291,0.18428171,38822.0,38809.0,0.1998]
[1646675778490,0.3,38821.0,38809.0,0.26422793]
[1646675778690,0.48428171,38822.0,38810.0,0.403354]
[1646675778889,0.48428171,38822.0,38810.0,0.05]
[1646675779190,0.48428171,38822.0,38810.0,0.1]
[1646675779490,0.48428171,38822.0,38811.0,0.22336018]
[1646675779689,0.1,38821.0,38811.0,0.15892818]
[1646675779944,0.3,38820.0,38811.0,0.15892818]
[1646675780348,0.3,38820.0,38811.0,0.22335618]
[1646675780546,0.3,38820.0,38811.0,0.15892818]
[1646675780944,0.3,38820.0,38809.0,0.06442793]
[1646675781149,0.3,38820.0,38804.0,0.328647]
[1646675781150,0.0475,38819.0,38804.0,0.1998]
[1646675781353,0.0475,38819.0,38808.0,0.00102628]
[1646675781354,0.428895,38818.0,38808.0,0.00102628]
[1646675781648,0.07327,38817.0,38808.0,0.00102628]
[1646675781851,0.32577,38816.0,38808.0,0.00102628]
[1646675782050,0.17137701,38811.0,38808.0,0.00102628]
[1646675782248,0.3,38814.0,38804.0,0.22001891]
[1646675782649,0.1475,38815.0,38804.0,0.2209767]
[1646675782848,0.3,38814.0,38804.0,0.2209767]
[1646675783251,0.0475,38815.0,38810.0,0.21758735]
[1646675783458,0.07732,38818.0,38810.0,0.21758735]
[1646675783459,0.06038,38818.0,38810.0,0.21758735]
[1646675783692,0.06038,38818.0,38810.0,0.26758735]
[1646675783693,0.04743605,38818.0,38810.0,0.26758735]
[1646675783887,0.04743605,38818.0,38813.0,0.27932725]
[1646675784088,0.04743605,38818.0,38810.0,0.05]
[1646675784289,0.04743605,38818.0,38801.0,0.00095784]
[1646675784487,0.04743605,38818.0,38805.0,0.02577]
[1646675784687,0.04743605,38818.0,38804.0,0.25772967]
[1646675784688,0.04743605,38818.0,38804.0,0.178866]
[1646675784886,0.04743605,38818.0,38805.0,0.05]
[1646675785085,0.04743605,38818.0,38807.0,0.19219469]
[1646675785086,0.19361008,38813.0,38807.0,0.19219469]
[1646675785286,0.19361008,38813.0,38807.0,0.05]
[1646675785795,0.25805308,38813.0,38803.0,0.1]
[1646675785988,0.25805308,38813.0,38794.0,0.128885]
[1646675785989,0.25805308,38813.0,38792.0,0.5531]
[1646675785994,0.3,38812.0,38792.0,0.5531]
[1646675786192,0.3,38812.0,38802.0,0.00096196]
[1646675786390,0.4,38812.0,38802.0,0.00096196]
[1646675786791,0.16994177,38808.0,38802.0,0.00096196]
[1646675786990,0.3475,38807.0,38802.0,0.00096196]
[1646675787189,0.02577,38806.0,38789.0,0.001]
[1646675787452,0.02577,38804.0,38789.0,0.001]
[1646675787649,0.02577,38802.0,38789.0,0.001]
[1646675787851,0.064475,38799.0,38789.0,0.001]
[1646675788050,0.0475,38798.0,38789.0,0.001]
[1646675788455,0.0475,38798.0,38792.0,0.00024143]
[1646675788653,0.0475,38798.0,38794.0,0.33984068]
[1646675789051,0.0475,38798.0,38795.0,0.17912763]
[1646675789250,0.0475,38798.0,38792.0,0.00024143]
[1646675789455,0.0475,38798.0,38791.0,0.128902]
[1646675789653,0.0505,38798.0,38795.0,0.00024142]
[1646675790252,0.003,38798.0,38795.0,0.16779202]
[1646675790452,0.003,38798.0,38795.0,0.00024142]
[1646675790654,0.003,38798.0,38792.0,0.1]
[1646675790655,0.003,38798.0,38792.0,0.05]
[1646675790854,0.003,38798.0,38795.0,0.00024075]
[1646675791703,0.002,38798.0,38795.0,0.00024075]
[1646675791904,0.066467,38798.0,38792.0,0.21275253]
[1646675792107,0.066467,38798.0,38795.0,0.00023989]
[1646675792307,0.3,38797.0,38795.0,0.00023989]
[1646675792505,0.06448,38796.0,38795.0,0.00023989]
[1646675792704,0.36448,38796.0,38795.0,0.00023989]
[1646675793105,0.064481,38795.0,38789.0,0.001]
[1646675793305,0.21904297,38793.0,38789.0,0.001]
[1646675793506,0.3,38794.0,38789.0,0.001]
[1646675794103,0.1,38795.0,38789.0,0.001]
[1646675794305,0.3,38796.0,38789.0,0.001]
[1646675794306,0.1,38796.0,38790.0,0.18390589]
[1646675794510,0.01288,38800.0,38793.0,0.26917424]
[1646675794706,0.17596242,38804.0,38793.0,0.26917424]
[1646675794960,0.17596242,38804.0,38794.0,0.403354]
[1646675795160,0.17596242,38804.0,38796.0,0.06756335]
[1646675795357,0.17596242,38804.0,38798.0,0.0644457]
[1646675795558,0.17596242,38804.0,38798.0,0.05818499]
[1646675795758,0.17596242,38804.0,38800.0,0.22214921]
[1646675796262,0.01288,38811.0,38800.0,0.32214921]
[1646675796462,0.79788,38815.0,38804.0,0.2143845]
[1646675796658,0.364441,38815.0,38804.0,0.2788245]
[1646675796857,0.364441,38815.0,38804.0,0.3288245]
[1646675797058,0.01288,38814.0,38804.0,0.3288245]
[1646675797258,0.1549196,38808.0,38804.0,0.2643845]
[1646675798064,0.1549196,38808.0,38804.0,0.05]
[1646675798261,0.1549196,38808.0,38800.0,0.27214921]
[1646675798262,0.1549196,38808.0,38800.0,0.05]
[1646675798463,0.3,38807.0,38800.0,0.05]
[1646675798688,0.3,38807.0,38799.0,0.0002402]
[1646675798889,0.42577,38807.0,38799.0,0.0002402]
[1646675799286,0.18384342,38800.0,38794.0,0.19039674]
[1646675799485,0.490224,38807.0,38794.0,0.19039674]
[1646675799486,0.064469,38802.0,38794.0,0.19039674]
[1646675799687,0.557704,38807.0,38799.0,0.00024031]
[1646675799991,0.4,38806.0,38799.0,0.00024031]
[1646675800386,0.064463,38805.0,38794.0,0.24039674]
[1646675800585,0.17583355,38803.0,38799.0,0.00024031]
[1646675801586,0.18183355,38803.0,38794.0,0.24039674]
[1646675801787,0.18183355,38803.0,38799.0,0.00024062]
[1646675802442,0.006,38803.0,38799.0,0.00024062]
[1646675802936,0.1,38804.0,38794.0,0.36465171]
[1646675802937,0.1,38804.0,38800.0,0.23991466]
[1646675803338,0.1,38810.0,38801.0,0.20819991]
[1646675803538,0.16613525,38809.0,38801.0,0.20819991]
[1646675804437,0.3,38808.0,38800.0,0.05]
[1646675804837,0.21854214,38802.0,38799.0,0.00024081]
[1646675805239,0.21854214,38802.0,38794.0,0.05]
[1646675805439,0.21854214,38802.0,38799.0,0.00024096]
[1646675805639,0.28600914,38802.0,38799.0,0.00024096]
[1646675806085,0.22154214,38802.0,38799.0,0.00024096]
[1646675806587,0.22154214,38802.0,38799.0,0.24368235]
[1646675806787,0.003,38802.0,38799.0,0.29392328]
[1646675806993,0.003,38802.0,38800.0,0.403354]
[1646675807588,0.003,38802.0,38801.0,0.22616688]
[1646675807786,0.17625267,38811.0,38801.0,0.61440355]
[1646675807987,0.17625267,38811.0,38802.0,0.403354]
[1646675808187,0.17625267,38811.0,38804.0,0.064441]
[1646675808386,0.01288,38821.0,38810.0,0.27303703]
[1646675808588,0.01288,38822.0,38810.0,0.37303703]
[1646675808786,0.3,38822.0,38810.0,0.1]
[1646675808987,0.3,38822.0,38810.0,0.05]
[1646675809190,0.3,38822.0,38801.0,0.2358426]
[1646675809385,0.20541205,38813.0,38808.0,0.00096354]
[1646675810038,0.26986205,38813.0,38808.0,0.00096354]
[1646675810239,0.26986205,38813.0,38803.0,0.19636946]
[1646675810436,0.26986205,38813.0,38803.0,0.05059835]
[1646675810836,0.02577,38818.0,38803.0,0.00059835]
[1646675811038,0.32577,38818.0,38803.0,0.00059835]
[1646675811236,0.12577,38817.0,38802.0,0.3099769]
[1646675811639,0.1,38817.0,38803.0,0.00059835]
[1646675811841,0.1,38817.0,38807.0,0.18607068]
[1646675812038,0.1,38817.0,38803.0,0.00059835]
[1646675812039,0.17305822,38815.0,38803.0,0.00059835]
[1646675812242,0.17305822,38815.0,38807.0,0.05]
[1646675812438,0.17305822,38815.0,38802.0,0.4517349]
[1646675812637,0.3,38814.0,38802.0,0.4388549]
[1646675813038,0.17305822,38815.0,38805.0,0.1701044]
[1646675813236,0.17305822,38815.0,38805.0,0.2201044]
[1646675813436,0.17305822,38815.0,38805.0,0.2701044]
[1646675813690,0.003,38815.0,38806.0,0.128866]
[1646675813890,0.003,38815.0,38806.0,0.178866]
[1646675814290,0.003,38815.0,38810.0,0.2688326]
[1646675814495,0.003,38815.0,38812.0,2.31746652]
[1646675814691,0.003,38815.0,38811.0,0.2210767]
[1646675814991,0.16198963,38817.0,38811.0,0.2710767]
[1646675815191,0.16198963,38817.0,38810.0,0.1]
[1646675815390,0.16198963,38817.0,38810.0,0.05]
[1646675815590,0.16198963,38817.0,38806.0,0.22990557]
[1646675815790,0.46598963,38817.0,38806.0,0.22990557]
[1646675815991,0.16598963,38817.0,38806.0,0.22990557]
[1646675816191,0.16598963,38817.0,38807.0,0.17890747]
[1646675816393,0.16598963,38817.0,38811.0,0.064432]
[1646675816995,0.16198963,38817.0,38811.0,0.064432]
[1646675817637,0.3,38816.0,38806.0,0.22987335]
[1646675817838,0.3,38816.0,38810.0,0.064436]
[1646675818037,0.16198963,38817.0,38810.0,0.064436]
[1646675818839,0.46198963,38817.0,38810.0,0.06435951]
[1646675820943,0.18460962,38811.0,38804.0,0.01288]
[1646675821202,0.18460962,38811.0,38806.0,0.00102446]
[1646675821203,0.3,38810.0,38806.0,0.00102446]
[1646675821607,0.4,38810.0,38806.0,0.00102446]
[1646675822203,0.4,38810.0,38800.0,0.128905]
[1646675822400,0.4,38810.0,38803.0,0.19575375]
[1646675822599,0.3,38809.0,38803.0,0.19575375]
[1646675822801,0.1,38811.0,38804.0,0.06445]
[1646675823001,0.1,38811.0,38804.0,0.29423117]
[1646675823201,0.1475,38813.0,38804.0,0.34423117]
[1646675823403,0.1475,38813.0,38804.0,0.39423117]
[1646675823604,0.20886712,38817.0,38805.0,0.403354]
[1646675823806,0.20886712,38819.0,38814.0,0.064422]
[1646675824002,0.36146877,38821.0,38814.0,0.064422]
[1646675824003,0.30876712,38821.0,38814.0,0.064422]
[1646675824204,0.16784597,38820.0,38814.0,0.114422]
[1646675824865,0.16784597,38820.0,38813.0,0.16788956]
[1646675825157,0.20886712,38822.0,38813.0,0.28231262]
[1646675825463,0.00025585,38823.0,38821.0,0.27064202]
[1646675825657,0.00025585,38823.0,38814.0,0.114422]
[1646675825658,0.04337959,38815.0,38814.0,0.114422]
[1646675825859,0.20886712,38828.0,38822.0,0.12880203]
[1646675826058,0.20886712,38828.0,38824.0,0.15998746]
[1646675826059,0.41055475,38828.0,38824.0,0.15998746]
[1646675826457,0.41055475,38828.0,38823.0,0.1]
[1646675826458,0.20168763,38828.0,38823.0,0.164402]
[1646675826657,0.21000529,38826.0,38823.0,0.05]
[1646675826857,0.005183,38825.0,38823.0,0.05]
[1646675827056,0.21000529,38826.0,38823.0,0.05]
[1646675827256,0.21000529,38827.0,38816.0,0.28298002]
[1646675827461,0.21000529,38827.0,38823.0,0.064415]
[1646675827462,0.3,38827.0,38823.0,0.064415]
[1646675827661,0.20168763,38828.0,38824.0,0.22119977]
[1646675827662,0.00025653,38826.0,38824.0,0.22119977]
[1646675827859,0.00025653,38826.0,38823.0,0.17882216]
[1646675828259,0.21000529,38829.0,38823.0,0.22882216]
[1646675828697,0.00025653,38826.0,38823.0,0.22882216]
[1646675828897,0.00025653,38826.0,38823.0,0.164415]
[1646675829098,0.21146354,38825.0,38823.0,0.164415]
[1646675829300,0.402964,38824.0,38823.0,0.164415]
[1646675829501,0.402964,38824.0,38823.0,0.114415]
[1646675829703,0.702964,38824.0,38823.0,0.05]
[1646675829902,0.3,38824.0,38823.0,0.05]
[1646675830103,0.21646354,38825.0,38823.0,0.05]
[1646675830299,0.005183,38824.0,38823.0,0.05]
[1646675830699,0.21646354,38825.0,38823.0,0.05]
[1646675830899,0.005,38825.0,38823.0,0.05]
[1646675831100,0.00025653,38825.0,38823.0,0.05]
[1646675831806,0.00025653,38825.0,38823.0,0.11441]
[1646675832000,0.17138258,38827.0,38823.0,0.11441]
[1646675832200,0.00025641,38826.0,38823.0,0.11441]
[1646675832650,0.402964,38825.0,38823.0,0.11441]
[1646675832849,0.00025641,38826.0,38823.0,0.11441]
[1646675833251,0.17138258,38827.0,38823.0,0.11441]
[1646675833746,0.00025641,38826.0,38823.0,0.11441]
[1646675833946,0.00025641,38826.0,38823.0,0.18666159]
[1646675834147,0.00025641,38826.0,38823.0,0.11441]
[1646675834347,0.21000529,38830.0,38823.0,0.11441]
[1646675834550,0.21000529,38830.0,38825.0,0.06440802]
[1646675834748,0.00025641,38826.0,38825.0,0.19322902]
[1646675835150,0.00025641,38826.0,38825.0,0.228821]
[1646675835549,0.17748443,38827.0,38825.0,0.228821]
[1646675835746,0.005,38826.0,38825.0,0.228821]
[1646675836487,0.1049,38826.0,38825.0,0.228821]
[1646675836987,0.51000529,38831.0,38825.0,0.228821]
[1646675837187,0.00025645,38827.0,38826.0,0.1]
[1646675837589,0.00025645,38827.0,38824.0,0.328722]
[1646675837590,0.03088612,38825.0,38824.0,0.328722]
[1646675837892,0.03606912,38825.0,38824.0,0.328722]
[1646675838488,0.03606912,38825.0,38824.0,0.1999]
[1646675838890,0.33606912,38825.0,38824.0,0.1999]
[1646675839091,0.54607441,38825.0,38824.0,0.1999]
[1646675839293,0.02577,38824.0,38809.0,0.1778]
[1646675839495,0.27954919,38821.0,38811.0,0.128882]
[1646675839692,0.402964,38819.0,38811.0,0.328682]
[1646675839945,0.005183,38817.0,38811.0,0.328682]
[1646675840140,0.21404722,38817.0,38811.0,0.328682]
[1646675840342,0.402964,38815.0,38811.0,0.328682]
[1646675840544,0.005183,38813.0,38811.0,0.328682]
[1646675841545,0.005183,38813.0,38811.0,0.128882]
[1646675841747,0.105183,38813.0,38811.0,0.128882]
[1646675841943,0.702964,38812.0,38811.0,0.128882]
[1646675842344,0.802964,38812.0,38811.0,0.128882]
[1646675842945,0.752964,38812.0,38811.0,0.128882]
[1646675843787,0.757964,38812.0,38811.0,0.128882]
[1646675845087,0.752964,38812.0,38811.0,0.128882]
[1646675845391,0.752964,38812.0,38810.0,0.393125]
[1646675845392,0.752964,38812.0,38807.0,0.064462]
[1646675845587,0.128927,38809.0,38807.0,0.064462]
[1646675845791,0.702964,38808.0,38807.0,0.064462]
[1646675846189,0.802964,38808.0,38807.0,0.064462]
[1646675847442,0.502964,38808.0,38807.0,0.064462]
[1646675847642,0.802964,38808.0,38807.0,0.064462]
[1646675847842,0.502964,38808.0,38807.0,0.064462]
[1646675848451,0.602864,38808.0,38807.0,0.064462]
[1646675848643,0.902864,38808.0,38807.0,0.064462]
[1646675848846,0.950364,38808.0,38806.0,0.1998]
[1646675849047,0.405183,38807.0,38806.0,0.1998]
[1646675849245,0.452683,38807.0,38806.0,0.1998]
[1646675849847,0.457683,38807.0,38806.0,0.1998]
[1646675850445,0.457683,38807.0,38806.0,0.2498]
[1646675851101,0.452683,38807.0,38806.0,0.05]
[1646675851697,0.052683,38807.0,38806.0,0.05]
[1646675852497,0.005183,38807.0,38806.0,0.05]
[1646675853098,0.305183,38807.0,38806.0,0.05]
[1646675853299,0.405183,38807.0,38806.0,0.05]
[1646675853899,0.411183,38807.0,38806.0,0.05]
[1646675854098,0.41087177,38807.0,38806.0,0.05]
[1646675855141,0.40487177,38807.0,38806.0,0.05]
[1646675855743,0.40487177,38807.0,38797.0,0.07696397]
[1646675855744,0.064468,38804.0,38797.0,0.07696397]
[1646675856043,0.403087,38803.0,38798.0,0.064463]
[1646675856245,0.1,38802.0,38798.0,0.128926]
[1646675856444,0.1,38802.0,38798.0,0.064463]
[1646675856846,0.1,38802.0,38799.0,0.17855026]
[1646675857043,0.0999,38807.0,38800.0,0.128905]
[1646675857245,0.403087,38806.0,38800.0,0.322276]
[1646675857443,0.403087,38806.0,38804.0,0.167]
[1646675857643,0.403087,38806.0,38804.0,0.28145]
[1646675857844,0.403087,38806.0,38805.0,0.05]
[1646675858246,0.503087,38806.0,38805.0,0.05]
[1646675859203,0.803087,38806.0,38804.0,0.281453]
[1646675859606,1.00940411,38806.0,38804.0,0.281453]
[1646675859807,0.803087,38805.0,38804.0,0.167]
[1646675860307,0.10212483,38803.0,38797.0,0.00027511]
[1646675860505,0.46756,38802.0,38797.0,0.00027511]
[1646675860705,0.17201881,38800.0,38797.0,0.00027511]
[1646675860907,0.403087,38799.0,38797.0,0.064474]
[1646675861206,0.403087,38799.0,38797.0,0.06474909]
[1646675861806,0.408087,38799.0,38797.0,0.06474909]
[1646675862007,0.46756,38798.0,38797.0,0.06474909]
[1646675862208,0.46756,38798.0,38797.0,0.064474]
[1646675862837,0.46756,38798.0,38797.0,0.114474]
[1646675863838,0.47156,38798.0,38797.0,0.114474]
[1646675865042,0.46756,38798.0,38797.0,0.114474]
[1646675865241,0.86756,38798.0,38797.0,0.114474]
[1646675867892,0.87356,38798.0,38797.0,0.114474]
[1646675869096,0.86756,38798.0,38797.0,0.114474]
[1646675869942,0.86756,38798.0,38797.0,0.05]
[1646675871945,0.87356,38798.0,38797.0,0.05]
[1646675873589,0.86756,38798.0,38797.0,0.05]
[1646675873790,0.86744968,38798.0,38797.0,0.05]
[1646675873990,0.87344968,38798.0,38797.0,0.05]
[1646675874596,0.87344968,38798.0,38796.0,0.32900278]
[1646675874795,0.4,38797.0,38796.0,0.32900278]
[1646675874993,0.803087,38797.0,38796.0,0.32900278]
[1646675875394,0.803087,38797.0,38796.0,0.328747]
[1646675875894,0.509087,38797.0,38796.0,0.328747]
[1646675876794,0.809087,38797.0,38796.0,0.378747]
[1646675877350,0.803087,38797.0,38796.0,0.378747]
[1646675878748,0.503087,38797.0,38796.0,0.378747]
[1646675879149,0.403087,38797.0,38796.0,0.378747]
[1646675879953,0.408087,38797.0,38796.0,0.378747]
[1646675880551,0.508087,38797.0,38796.0,0.378747]
[1646675880750,0.808087,38797.0,38796.0,0.378747]
[1646675881215,0.808087,38797.0,38794.0,0.064473]
[1646675881216,0.37215919,38795.0,38794.0,0.064473]
[1646675881417,1.12684619,38795.0,38794.0,0.064473]
[1646675881616,1.22684619,38795.0,38794.0,0.064473]
[1646675881815,1.24272619,38795.0,38794.0,0.064473]
[1646675882217,1.45264638,38795.0,38794.0,0.064473]
[1646675882416,1.24272619,38795.0,38794.0,0.064473]
[1646675882822,1.45264638,38795.0,38794.0,0.114473]
[1646675883013,1.65246036,38795.0,38794.0,0.114473]
[1646675883214,2.43636036,38795.0,38794.0,0.114473]
[1646675883615,1.43954017,38795.0,38794.0,0.114473]
[1646675883815,2.23144017,38795.0,38794.0,0.114473]
[1646675884117,0.7869,38793.0,38789.0,0.001]
[1646675884317,1.54993928,38790.0,38789.0,0.001]
[1646675884515,1.45153928,38790.0,38789.0,0.001]
[1646675884716,1.65144999,38790.0,38789.0,0.194506]
[1646675884944,1.836907,38790.0,38789.0,0.194506]
[1646675885148,1.30447199,38790.0,38789.0,0.194506]
[1646675885346,1.31736199,38790.0,38789.0,0.194506]
[1646675885545,1.80425199,38790.0,38789.0,0.244506]
[1646675885745,1.853087,38789.0,38788.0,0.35828396]
[1646675885947,2.004687,38789.0,38788.0,0.35828396]
[1646675886150,2.10460098,38789.0,38788.0,0.35800906]
[1646675886451,1.45,38788.0,38787.0,0.00025432]
[1646675886656,5.68548689,38788.0,38787.0,0.19840432]
[1646675886953,5.47559119,38788.0,38787.0,0.19240432]
[1646675887251,2.640237,38787.0,38782.0,0.001]
[1646675887451,0.15,38783.0,38782.0,0.001]
[1646675887753,1.19940654,38783.0,38782.0,0.06552]
[1646675887949,1.21383552,38783.0,38782.0,0.06552]
[1646675888151,0.632092,38783.0,38782.0,0.06552]
[1646675888350,0.619202,38783.0,38782.0,0.06552]
[1646675888619,0.332114,38783.0,38782.0,0.06552]
[1646675889015,0.33202798,38783.0,38782.0,0.06552]
[1646675889216,0.73202798,38783.0,38782.0,0.06552]
[1646675889416,0.73202798,38783.0,38782.0,0.05552]
[1646675890015,0.73602798,38783.0,38782.0,0.00552]
[1646675890217,1.45,38782.0,38777.0,0.42]
[1646675890420,0.064521,38780.0,38777.0,0.42]
[1646675890614,0.372399,38779.0,38777.0,0.42]
[1646675890814,0.420799,38778.0,38777.0,0.42]
[1646675891016,0.472399,38778.0,38777.0,0.42]
[1646675891218,0.472399,38778.0,38777.0,0.54904]
[1646675891516,0.472399,38778.0,38776.0,0.26459395]
[1646675891715,0.320799,38777.0,38776.0,0.26459395]
[1646675891917,0.320799,38777.0,38772.0,0.001]
[1646675891918,1.45,38776.0,38772.0,0.001]
[1646675892115,1.45,38774.0,38768.0,0.00109995]
[1646675892347,0.53693316,38773.0,38768.0,0.00109995]
[1646675892548,0.16444898,38772.0,38768.0,0.00109995]
[1646675892746,0.47231298,38771.0,38768.0,0.00109995]
[1646675893145,0.1,38770.0,38768.0,0.00109995]
[1646675893445,0.372399,38769.0,38768.0,0.00109995]
[1646675893644,1.220799,38768.0,38767.0,0.00159995]
[1646675893845,1.372399,38768.0,38767.0,0.00159995]
[1646675894046,1.15774322,38767.0,38766.0,0.001]
[1646675894249,1.60934322,38767.0,38766.0,0.001]
[1646675894444,1.7092572,38767.0,38766.0,0.001]
[1646675895344,1.7738032,38767.0,38766.0,0.001]
[1646675895745,0.8238032,38767.0,38766.0,0.001]
[1646675895944,0.8268032,38767.0,38766.0,0.001]
[1646675896397,1.45,38766.0,38765.0,0.00027361]
[1646675896602,5.90278359,38766.0,38765.0,0.00027361]
[1646675896797,6.79456857,38766.0,38759.0,0.002]
[1646675896995,0.05872639,38761.0,38759.0,0.002]
[1646675897197,1.60559691,38760.0,38759.0,0.0001]
[1646675897397,1.60559691,38760.0,38758.0,0.001]
[1646675897398,0.95,38759.0,38758.0,0.001]
[1646675897601,1.22577,38756.0,38749.0,0.001]
[1646675897807,1.45,38757.0,38739.0,0.05]
[1646675897808,0.02577,38753.0,38739.0,0.05]
[1646675898000,0.064578,38749.0,38736.0,0.4561]
[1646675898201,0.07209122,38746.0,38734.0,0.4154]
[1646675898398,0.15610239,38743.0,38737.0,0.129153]
[1646675898601,0.072399,38742.0,38737.0,0.079153]
[1646675899402,0.085376,38739.0,38736.0,0.129154]
[1646675899605,0.085376,38739.0,38729.0,0.001]
[1646675899606,0.020799,38737.0,38729.0,0.001]
[1646675899847,0.0516,38736.0,38729.0,0.001]
[1646675900047,0.033699,38735.0,38729.0,0.065596]
[1646675900261,0.09991398,38731.0,38727.0,0.001]
[1646675900451,0.19393238,38728.0,38727.0,0.001]
[1646675900648,0.372399,38728.0,38727.0,0.001]
[1646675900851,1.45,38727.0,38723.0,0.07837147]
[1646675901050,0.7869,38725.0,38718.0,0.05]
[1646675901252,0.020799,38722.0,38709.0,0.0129]
[1646675901551,0.0516,38721.0,38718.0,0.16530109]